bitfinex/quotes_SOLUSD_20220307
["timestamp","ask_amount","ask_price","bid_price","bid_amount"]
[1646638445606,6.07,82.405,82.351,58.33149562]
[1646638446606,51.68979613,82.406,82.351,58.33149562]
[1646638446806,6.069,82.405,82.35,32.895]
[1646638447808,6.069,82.405,82.35,97.08310907]
[1646638448006,51.68979613,82.406,82.35,32.895]
[1646638448907,6.069,82.405,82.35,14.68]
[1646638449109,51.68979613,82.406,82.35,14.68]
[1646638451510,51.68979613,82.406,82.35,32.8942]
[1646638452513,1.61957599,82.438,82.371,120.5]
[1646638452711,73.3535,82.504,82.381,121.39977739]
[1646638452712,46.1888,82.469,82.381,121.39977739]
[1646638452913,46.1888,82.469,82.391,0.89977739]
[1646638453514,47.21444858,82.468,82.393,0.89977739]
[1646638454213,6.065,82.467,82.4,18.1992]
[1646638454413,6.065,82.467,82.41,14.68]
[1646638454612,6.065,82.467,82.411,0.89977739]
[1646638455417,6.065,82.467,82.41,14.68]
[1646638455813,47.21444858,82.468,82.41,14.68]
[1646638456013,47.21444858,82.468,82.39,14.68]
[1646638456014,120.5,82.467,82.39,14.68]
[1646638456215,120.5,82.465,82.39,14.68]
[1646638456415,120.5,82.465,82.37,14.68]
[1646638456613,1.61957599,82.46,82.37,14.68]
[1646638456815,1.61957599,82.457,82.37,14.68]
[1646638457013,126.566,82.456,82.37,32.8899]
[1646638457417,5.89676614,82.455,82.371,47.6782499]
[1646638457814,24.7082,82.454,82.371,47.6782499]
[1646638458017,6.067,82.453,82.371,47.6782499]
[1646638459214,6.067,82.453,82.38,18.2069]
[1646638459414,6.067,82.453,82.38,32.8869]
[1646638460115,120.5,82.452,82.38,32.8869]
[1646638460316,120.5,82.45,82.38,32.8869]
[1646638460519,120.5,82.448,82.38,32.8869]
[1646638460716,120.5,82.446,82.38,32.8869]
[1646638460917,6.067,82.445,82.38,32.8869]
[1646638461339,120.5,82.444,82.38,14.68]
[1646638461517,120.5,82.44,82.38,14.68]
[1646638461719,41.72766997,82.441,82.38,14.68]
[1646638461917,6.067,82.44,82.38,14.68]
[1646638462718,120.5,82.439,82.38,14.68]
[1646638462918,120.5,82.437,82.38,14.68]
[1646638463321,41.72766997,82.441,82.38,14.68]
[1646638464118,6.067,82.44,82.38,14.68]
[1646638464920,6.067,82.44,82.38,32.8879]
[1646638466322,6.067,82.44,82.38,14.68]
[1646638466521,5.567,82.44,82.38,14.68]
[1646638466724,5.567,82.44,82.361,18.0159]
[1646638466921,120.5,82.438,82.361,18.0159]
[1646638467122,120.5,82.436,82.361,18.0159]
[1646638467522,6.067,82.435,82.36,32.8917]
[1646638467723,120.5,82.434,82.36,14.68]
[1646638467923,6.067,82.435,82.34,32.8966]
[1646638467924,120.5,82.432,82.34,32.8966]
[1646638468124,120.5,82.43,82.34,32.8966]
[1646638468624,120.5,82.428,82.34,32.8966]
[1646638468843,120.5,82.426,82.34,32.8966]
[1646638469044,120.5,82.424,82.34,32.8966]
[1646638469244,120.5,82.422,82.34,32.8966]
[1646638469447,120.5,82.42,82.34,32.8966]
[1646638469646,120.5,82.418,82.34,32.8966]
[1646638469945,6.069,82.419,82.34,32.8966]
[1646638469946,120.5,82.416,82.34,14.68]
[1646638470148,120.5,82.412,82.34,14.68]
[1646638470345,120.5,82.41,82.34,14.68]
[1646638470547,120.5,82.408,82.34,14.68]
[1646638470847,120.5,82.406,82.34,14.68]
[1646638471049,6.069,82.405,82.34,14.68]
[1646638471247,12.249,82.405,82.34,14.68]
[1646638472448,6.069,82.405,82.34,14.68]
[1646638472647,120.5,82.408,82.34,14.68]
[1646638472847,120.5,82.406,82.34,14.68]
[1646638473048,6.069,82.405,82.34,14.68]
[1646638473850,126.569,82.405,82.34,14.68]
[1646638474249,6.069,82.405,82.34,14.68]
[1646638474449,6.069,82.41,82.34,14.68]
[1646638474650,6.069,82.41,82.34,32.8967]
[1646638475753,1.61957599,82.43,82.341,120.5]
[1646638475950,1.61957599,82.434,82.36,18.2106]
[1646638476149,1.61957599,82.434,82.361,0.71047177]
[1646638476351,50.08787599,82.435,82.361,0.71047177]
[1646638476551,1.61957599,82.433,82.36,32.8906]
[1646638476752,1.61957599,82.433,82.36,95.08833011]
[1646638476949,50.13444226,82.434,82.36,95.08833011]
[1646638477150,48.51486627,82.434,82.36,95.08833011]
[1646638477550,6.067,82.433,82.36,95.08833011]
[1646638478151,120.5,82.432,82.36,95.08833011]
[1646638478353,120.5,82.43,82.36,32.8906]
[1646638478552,120.5,82.428,82.36,14.68]
[1646638478752,6.067,82.427,82.36,14.68]
[1646638478954,120.5,82.426,82.36,14.68]
[1646638479151,6.067,82.425,82.36,14.68]
[1646638479851,23.4413,82.424,82.36,14.68]
[1646638480051,6.067,82.423,82.36,14.68]
[1646638481459,23.4413,82.424,82.36,14.68]
[1646638481956,120.5,82.423,82.36,14.68]
[1646638482156,120.5,82.421,82.36,14.68]
[1646638482355,120.5,82.419,82.36,14.68]
[1646638482556,125.09634845,82.419,82.36,14.68]
[1646638482758,120.5,82.417,82.36,14.68]
[1646638482957,120.5,82.415,82.36,14.68]
[1646638483158,6.067,82.414,82.36,14.68]
[1646638483962,29.8005,82.414,82.36,14.68]
[1646638485260,23.7335,82.414,82.36,14.68]
[1646638485660,23.7335,82.414,82.36,32.8923]
[1646638486960,6.067,82.413,82.36,32.8923]
[1646638487160,23.7335,82.414,82.36,32.8923]
[1646638487361,90.0,82.413,82.34,5.40895842]
[1646638487561,4.57934783,82.411,82.287,4.87155233]
[1646638487760,1.61957599,82.382,82.286,23.3866]
[1646638487961,1.61957599,82.367,82.29,18.2268]
[1646638488160,1.61957599,82.371,82.29,14.68]
[1646638488361,1.61957599,82.367,82.291,48.78454347]
[1646638488560,1.61957599,82.368,82.291,48.78454347]
[1646638489161,1.61957599,82.375,82.291,48.78454347]
[1646638489362,6.072,82.374,82.291,48.78454347]
[1646638489762,6.072,82.377,82.291,48.78454347]
[1646638490662,6.072,82.377,82.3,18.2253]
[1646638492464,123.33613526,82.376,82.3,18.2253]
[1646638492665,126.572,82.375,82.3,18.2253]
[1646638492863,6.072,82.375,82.3,18.2253]
[1646638493464,126.572,82.375,82.3,18.2253]
[1646638493664,126.572,82.375,82.3,36.7344]
[1646638493865,6.072,82.375,82.3,51.4144]
[1646638494067,47.9662,82.378,82.301,120.90999043]
[1646638494265,47.9662,82.378,82.32,18.2184]
[1646638494465,47.9662,82.378,82.321,52.43767954]
[1646638494665,6.071,82.401,82.322,120.5]
[1646638494866,3.24092795,82.426,82.322,120.5]
[1646638494867,6.07,82.402,82.323,0.74981594]
[1646638495072,1.61957599,82.413,82.323,0.74981594]
[1646638495267,1.61957599,82.413,82.331,120.5]
[1646638495466,7.68957599,82.412,82.34,14.68]
[1646638495667,1.61957599,82.413,82.341,54.4378519]
[1646638495865,1.61957599,82.416,82.341,54.4378519]
[1646638496066,1.61957599,82.413,82.341,54.4378519]
[1646638496267,1.61957599,82.412,82.341,54.4378519]
[1646638496468,6.069,82.411,82.35,18.2139]
[1646638496670,6.069,82.411,82.351,0.49671023]
[1646638496867,6.069,82.419,82.351,0.49671023]
[1646638497270,7.68857599,82.419,82.351,0.49671023]
[1646638497568,6.069,82.419,82.36,18.2095]
[1646638497768,6.067,82.421,82.361,53.83189991]
[1646638497968,1.61957599,82.424,82.361,53.83189991]
[1646638498169,1.61957599,82.418,82.361,53.83189991]
[1646638498969,1.61957599,82.419,82.361,53.83189991]
[1646638499173,1.61957599,82.419,82.37,18.21]
[1646638499568,1.61957599,82.419,82.37,32.89]
[1646638499769,1.61957599,82.42,82.37,32.89]
[1646638500168,1.61957599,82.425,82.37,32.89]
[1646638500370,1.61957599,82.428,82.37,32.89]
[1646638500570,1.61957599,82.43,82.38,18.203]
[1646638500768,1.61957599,82.43,82.361,53.83189991]
[1646638500769,1.61957599,82.442,82.39,14.68]
[1646638500969,1.61957599,82.448,82.4,14.68]
[1646638501172,1.61957599,82.452,82.401,61.9264663]
[1646638501580,1.61957599,82.452,82.402,120.5]
[1646638501773,1.61957599,82.456,82.41,18.1976]
[1646638501969,1.61957599,82.456,82.42,14.68]
[1646638502169,1.61957599,82.458,82.421,47.76161786]
[1646638502371,1.61957599,82.461,82.421,47.76161786]
[1646638502589,1.61957599,82.467,82.421,47.76161786]
[1646638503069,1.61957599,82.468,82.43,18.1958]
[1646638503269,1.61957599,82.467,82.421,47.09771072]
[1646638503471,1.61957599,82.469,82.421,47.09771072]
[1646638503969,2.44044431,82.47,82.421,47.09771072]
[1646638504171,2.44044431,82.47,82.43,18.1963]
[1646638504373,0.82086832,82.47,82.43,18.1963]
[1646638505574,0.82086832,82.47,82.421,47.09771072]
[1646638506572,0.82086832,82.47,82.42,14.68]
[1646638506774,1.61957599,82.469,82.404,8.66]
[1646638507473,1.61957599,82.458,82.404,8.66]
[1646638507673,1.61957599,82.455,82.404,8.66]
[1646638507873,7.68457599,82.454,82.404,8.66]
[1646638508274,6.065,82.454,82.404,8.66]
[1646638509173,7.68457599,82.454,82.404,8.66]
[1646638509374,1.61957599,82.453,82.404,8.66]
[1646638509576,6.065,82.452,82.404,8.66]
[1646638509777,120.5,82.451,82.404,8.66]
[1646638509975,1.61957599,82.447,82.404,8.66]
[1646638510174,120.5,82.449,82.404,8.66]
[1646638510175,1.61957599,82.446,82.404,8.66]
[1646638510376,6.066,82.445,82.404,8.66]
[1646638513177,6.066,82.445,82.393,60.62045996]
[1646638513577,6.066,82.446,82.393,60.62045996]
[1646638513777,6.066,82.447,82.393,60.62045996]
[1646638514179,1.61957599,82.446,82.39,18.2055]
[1646638514379,6.066,82.445,82.39,18.2055]
[1646638514582,6.066,82.446,82.39,18.2055]
[1646638514783,7.68557599,82.446,82.39,18.2055]
[1646638515183,1.61957599,82.446,82.391,54.25463648]
[1646638515381,1.61957599,82.448,82.391,54.25463648]
[1646638515881,1.61957599,82.448,82.37,14.68]
[1646638516082,1.61957599,82.448,82.358,27.87092647]
[1646638516083,1.61957599,82.442,82.35,60.6997]
[1646638516284,1.61957599,82.436,82.35,75.3797]
[1646638516583,7.68657599,82.435,82.35,75.3797]
[1646638516784,22.5907,82.434,82.35,75.3797]
[1646638516983,6.067,82.433,82.36,18.2127]
[1646638517489,22.5907,82.434,82.36,18.2127]
[1646638518500,22.5907,82.434,82.36,32.8927]
[1646638518700,24.21027599,82.434,82.36,32.8927]
[1646638518899,22.5907,82.434,82.36,32.8927]
[1646638519300,1.61957599,82.433,82.36,32.8927]
[1646638520199,1.61957599,82.433,82.361,0.54205048]
[1646638520403,1.61957599,82.433,82.38,18.2071]
[1646638520700,6.067,82.432,82.381,58.95764885]
[1646638521001,6.067,82.433,82.381,58.95764885]
[1646638521202,1.61957599,82.431,82.381,58.95764885]
[1646638521500,1.61957599,82.431,82.381,58.41559837]
[1646638521699,1.61957599,82.43,82.381,58.41559837]
[1646638521900,1.61957599,82.431,82.381,58.41559837]
[1646638522503,1.61957599,82.432,82.381,58.41559837]
[1646638522799,22.5907,82.434,82.36,75.3691]
[1646638522800,9.14027599,82.434,82.36,75.3691]
[1646638523002,9.14027599,82.434,82.37,14.68]
[1646638523203,6.067,82.433,82.37,14.68]
[1646638523402,6.067,82.44,82.37,14.68]
[1646638523801,6.067,82.44,82.371,50.65986159]
[1646638524003,6.067,82.44,82.37,14.68]
[1646638524004,127.10905644,82.439,82.37,14.68]
[1646638524203,4.21799134,82.436,82.35,14.68]
[1646638524403,120.5,82.434,82.35,14.68]
[1646638524603,120.5,82.432,82.35,14.68]
[1646638524803,120.5,82.43,82.35,14.68]
[1646638525005,120.5,82.428,82.351,51.96909895]
[1646638525203,12.67605644,82.427,82.351,51.96909895]
[1646638525406,120.5,82.426,82.351,51.96909895]
[1646638525604,6.067,82.425,82.351,51.96909895]
[1646638526205,120.5,82.429,82.351,51.96909895]
[1646638526405,6.60943244,82.428,82.351,51.96909895]
[1646638526606,6.067,82.427,82.351,51.96909895]
[1646638526808,6.067,82.428,82.351,51.96909895]
[1646638527106,6.067,82.429,82.351,51.96909895]
[1646638527307,6.60973522,82.428,82.351,51.96909895]
[1646638527509,6.067,82.427,82.351,51.96909895]
[1646638527907,6.067,82.429,82.351,51.96909895]
[1646638528107,6.067,82.429,82.36,18.2124]
[1646638528308,23.4087,82.43,82.36,18.2124]
[1646638528709,6.067,82.429,82.36,18.2124]
[1646638528912,6.6097023,82.428,82.36,18.2124]
[1646638529110,6.067,82.427,82.36,18.2124]
[1646638529712,6.067,82.429,82.36,18.2124]
[1646638529912,6.60968557,82.428,82.36,18.2124]
[1646638530114,6.60968557,82.429,82.36,18.2124]
[1646638533015,120.5,82.428,82.36,18.2124]
[1646638533216,6.60968557,82.427,82.36,18.2124]
[1646638533416,6.067,82.426,82.36,18.2124]
[1646638534017,6.067,82.428,82.36,18.2124]
[1646638534720,6.60961896,82.427,82.36,18.2124]
[1646638534920,6.067,82.426,82.36,18.2124]
[1646638535519,25.15567127,82.441,82.352,120.5]
[1646638535520,3.23196571,82.432,82.38,18.2066]
[1646638535720,3.23196571,82.432,82.39,14.68]
[1646638535920,4.8827009,82.492,82.392,0.89977739]
[1646638536121,4.8827009,82.513,82.392,0.89977739]
[1646638536346,4.8827009,82.523,82.394,120.5]
[1646638536522,6.063,82.522,82.397,120.5]
[1646638536723,6.063,82.522,82.396,57.43588777]
[1646638536724,6.063,82.522,82.414,77.26927388]
[1646638536925,6.063,82.522,82.44,18.1858]
[1646638537125,6.063,82.522,82.45,14.68]
[1646638537321,4.8827009,82.535,82.451,0.89977739]
[1646638537322,6.061,82.534,82.451,0.89977739]
[1646638537522,120.5,82.533,82.451,0.89977739]
[1646638537825,120.5,82.531,82.45,14.68]
[1646638538022,4.8827009,82.527,82.45,14.68]
[1646638538424,120.5,82.519,82.43,14.68]
[1646638538624,120.5,82.517,82.43,14.68]
[1646638538923,6.062,82.516,82.43,14.68]
[1646638539525,6.062,82.525,82.431,47.72767184]
[1646638539724,6.062,82.527,82.432,0.40954352]
[1646638540127,6.062,82.536,82.432,0.40954352]
[1646638540527,6.062,82.536,82.431,47.72767184]
[1646638540726,126.562,82.536,82.432,120.5]
[1646638540926,120.5,82.534,82.451,48.68324747]
[1646638541128,120.5,82.532,82.451,48.68324747]
[1646638541328,6.061,82.531,82.451,48.68324747]
[1646638541528,6.061,82.534,82.451,48.68324747]
[1646638542329,120.5,82.533,82.451,48.68324747]
[1646638542527,6.061,82.532,82.451,48.68324747]
[1646638542930,6.061,82.534,82.451,48.68324747]
[1646638543730,6.061,82.534,82.46,18.189]
[1646638544346,6.061,82.534,82.46,32.869]
[1646638544949,47.5059,82.535,82.46,32.869]
[1646638545550,6.059,82.534,82.46,32.869]
[1646638545947,47.5059,82.535,82.46,32.869]
[1646638549756,120.5,82.534,82.46,32.869]
[1646638549958,120.5,82.534,82.46,14.68]
[1646638550155,120.5,82.532,82.451,48.68324747]
[1646638550558,120.5,82.53,82.451,48.68324747]
[1646638550758,120.5,82.528,82.451,48.68324747]
[1646638550956,120.5,82.526,82.451,48.68324747]
[1646638551157,120.5,82.524,82.451,48.68324747]
[1646638551357,120.5,82.522,82.451,48.68324747]
[1646638551555,120.5,82.52,82.451,48.68324747]
[1646638551758,53.11702171,82.535,82.451,48.68324747]
[1646638551759,120.5,82.518,82.451,48.68324747]
[1646638552556,30.4741,82.519,82.45,14.68]
[1646638552557,126.561,82.517,82.45,14.68]
[1646638552858,120.5,82.509,82.42,14.68]
[1646638553062,120.5,82.507,82.42,14.68]
[1646638553256,120.5,82.505,82.42,14.68]
[1646638553457,120.5,82.503,82.423,49.50835368]
[1646638553657,120.5,82.501,82.423,49.50835368]
[1646638553858,48.5334,82.506,82.423,49.50835368]
[1646638553859,120.5,82.499,82.423,49.50835368]
[1646638554057,6.063,82.498,82.423,49.50835368]
[1646638554257,6.063,82.505,82.423,49.50835368]
[1646638555158,6.063,82.505,82.43,18.1966]
[1646638555862,48.5334,82.506,82.431,120.5]
[1646638556062,48.5334,82.506,82.432,0.48348288]
[1646638556462,48.5334,82.506,82.433,149.15566834]
[1646638556661,48.5334,82.506,82.434,0.49249904]
[1646638556862,48.5334,82.506,82.433,161.1060416]
[1646638557161,48.5334,82.506,82.434,11.95037326]
[1646638557363,6.062,82.505,82.43,14.68]
[1646638557563,120.5,82.504,82.411,24.9909]
[1646638557762,120.5,82.502,82.411,24.9909]
[1646638557963,120.5,82.5,82.41,14.68]
[1646638558166,5.08289072,82.497,82.41,14.68]
[1646638558364,120.5,82.495,82.39,14.68]
[1646638558564,30.2974,82.496,82.39,14.68]
[1646638558565,120.5,82.493,82.39,14.68]
[1646638558764,120.5,82.489,82.37,14.68]
[1646638558964,125.08997688,82.487,82.366,28.65566834]
[1646638559164,125.08997688,82.487,82.36,14.68]
[1646638559165,120.5,82.485,82.36,14.68]
[1646638559374,5.22777235,82.468,82.342,28.65566834]
[1646638559572,120.5,82.466,82.342,28.65566834]
[1646638559773,126.07671081,82.459,82.35,18.2144]
[1646638559971,120.5,82.457,82.35,32.8944]
[1646638560173,120.5,82.455,82.35,32.8944]
[1646638560374,120.5,82.453,82.35,32.8944]
[1646638560569,120.5,82.453,82.351,20.8881229]
[1646638560776,29.1706,82.452,82.362,120.5]
[1646638560974,23.1036,82.452,82.371,120.5]
[1646638561177,23.1036,82.452,82.37,14.68]
[1646638561376,23.1036,82.452,82.372,20.8881229]
[1646638561575,23.1036,82.452,82.372,49.54379124]
[1646638561972,6.067,82.451,82.372,49.54379124]
[1646638562175,120.5,82.45,82.37,32.8887]
[1646638562373,120.5,82.448,82.37,14.68]
[1646638562593,120.5,82.446,82.37,14.68]
[1646638562772,120.5,82.444,82.37,14.68]
[1646638562972,120.5,82.442,82.37,14.68]
[1646638563172,6.067,82.441,82.37,14.68]
[1646638563376,22.6986,82.44,82.37,14.68]
[1646638563573,6.067,82.439,82.37,14.68]
[1646638564172,120.5,82.438,82.37,14.68]
[1646638564373,126.567,82.437,82.37,14.68]
[1646638565172,120.5,82.437,82.37,14.68]
[1646638565384,6.067,82.436,82.37,14.68]
[1646638565782,28.8579,82.439,82.37,14.68]
[1646638566684,22.7909,82.439,82.37,32.8896]
[1646638566883,22.7909,82.439,82.372,120.99261029]
[1646638567083,22.7909,82.439,82.372,0.49261029]
[1646638567282,22.7909,82.439,82.371,40.6060416]
[1646638567985,22.7909,82.439,82.381,54.58956601]
[1646638569584,22.7909,82.439,82.382,0.43511168]
[1646638569787,22.7909,82.439,82.381,54.58956601]
[1646638573707,22.7909,82.439,82.39,18.2046]
[1646638574005,54.5107,82.466,82.391,0.71028317]
[1646638574203,6.065,82.494,82.391,121.21028317]
[1646638574405,30.8304,82.485,82.391,174.64185151]
[1646638574704,30.8304,82.485,82.393,120.5]
[1646638574905,30.8304,82.485,82.394,178.93227092]
[1646638575106,30.8304,82.485,82.41,18.1975]
[1646638575308,30.8304,82.485,82.411,62.53634652]
[1646638575506,30.8304,82.485,82.412,0.45721917]
[1646638575705,24.7654,82.485,82.412,0.45721917]
[1646638575905,24.7654,82.485,82.412,120.95721917]
[1646638576308,24.7654,82.485,82.412,149.61288751]
[1646638576906,24.7654,82.485,82.421,0.45992953]
[1646638577106,24.7654,82.485,82.431,49.90188572]
[1646638578614,24.7654,82.485,82.431,49.44195619]
[1646638579609,23.6783,82.494,82.431,49.44195619]
[1646638579811,23.6783,82.494,82.44,18.193]
[1646638580011,23.6783,82.494,82.451,49.10824807]
[1646638580617,6.062,82.513,82.451,49.10824807]
[1646638580811,24.8822,82.514,82.451,49.10824807]
[1646638581316,24.8822,82.514,82.46,18.1888]
[1646638581614,24.8822,82.514,82.461,0.49574292]
[1646638581918,24.8822,82.514,82.46,14.68]
[1646638582314,30.5146,82.538,82.461,120.5]
[1646638582520,24.4536,82.538,82.472,120.5]
[1646638582720,22.5483,82.558,82.48,14.68]
[1646638583017,120.5,82.557,82.48,14.68]
[1646638583218,6.059,82.556,82.48,14.68]
[1646638583917,120.5,82.557,82.48,14.68]
[1646638584517,6.059,82.556,82.48,14.68]
[1646638585717,120.5,82.555,82.48,14.68]
[1646638585916,22.5483,82.558,82.48,14.68]
[1646638585917,120.5,82.553,82.48,14.68]
[1646638586118,120.5,82.551,82.48,14.68]
[1646638586322,120.5,82.549,82.48,14.68]
[1646638586621,24.3115,82.548,82.48,14.68]
[1646638587021,24.3115,82.548,82.481,60.97220569]
[1646638587419,6.059,82.547,82.481,60.97220569]
[1646638588922,24.3115,82.548,82.481,60.97220569]
[1646638589125,24.3115,82.548,82.48,14.68]
[1646638590522,24.3115,82.548,82.48,32.864]
[1646638591628,120.5,82.547,82.48,14.68]
[1646638591825,6.059,82.546,82.48,14.68]
[1646638592226,6.059,82.547,82.48,14.68]
[1646638592826,120.5,82.547,82.48,14.68]
[1646638593028,4.8456744,82.546,82.48,14.68]
[1646638593227,4.8456744,82.546,82.395,5.17409004]
[1646638593228,120.5,82.544,82.435,17.8462]
[1646638593425,120.5,82.542,82.45,14.68]
[1646638593826,120.5,82.54,82.45,14.68]
[1646638594030,4.77498538,82.537,82.45,14.68]
[1646638594232,120.5,82.535,82.45,14.68]
[1646638594427,53.979,82.536,82.45,14.68]
[1646638594428,120.5,82.533,82.45,14.68]
[1646638594628,120.5,82.531,82.45,14.68]
[1646638594827,120.5,82.529,82.45,14.68]
[1646638595228,120.5,82.527,82.45,14.68]
[1646638595427,6.061,82.526,82.45,14.68]
[1646638595628,120.5,82.525,82.45,14.68]
[1646638595829,120.5,82.523,82.45,14.68]
[1646638596030,120.5,82.521,82.45,14.68]
[1646638596228,29.9435,82.522,82.45,14.68]
[1646638596229,120.5,82.519,82.45,14.68]
[1646638596428,120.5,82.517,82.45,14.68]
[1646638596628,6.061,82.516,82.45,14.68]
[1646638597130,6.061,82.521,82.45,14.68]
[1646638597532,6.061,82.521,82.45,32.8714]
[1646638598734,120.5,82.52,82.45,32.8714]
[1646638598934,23.8825,82.522,82.43,18.1961]
[1646638598935,120.5,82.518,82.43,18.1961]
[1646638599135,4.90358619,82.515,82.43,32.8761]
[1646638599438,120.5,82.513,82.43,32.8761]
[1646638599639,120.5,82.511,82.43,32.8761]
[1646638599835,120.5,82.509,82.431,62.3244578]
[1646638600235,30.8301,82.508,82.431,62.3244578]
[1646638600736,30.8301,82.508,82.432,28.65566834]
[1646638601135,18.2027,82.5,82.43,14.68]
[1646638601436,126.563,82.499,82.43,14.68]
[1646638601635,120.5,82.497,82.43,14.68]
[1646638601834,120.5,82.495,82.43,14.68]
[1646638602237,120.5,82.493,82.43,14.68]
[1646638602435,120.5,82.491,82.43,14.68]
[1646638602634,120.5,82.489,82.43,14.68]
[1646638602835,6.063,82.488,82.43,14.68]
[1646638603035,6.063,82.496,82.43,14.68]
[1646638603235,23.5234,82.498,82.43,32.877]
[1646638603435,23.5234,82.498,82.431,61.82728005]
[1646638603636,6.063,82.497,82.431,61.82728005]
[1646638605536,120.5,82.497,82.431,61.82728005]
[1646638605737,23.5234,82.498,82.431,61.82728005]
[1646638607541,23.5234,82.498,82.432,28.65566834]
[1646638608137,23.5234,82.498,82.433,120.5]
[1646638608338,6.063,82.533,82.441,120.5]
[1646638608540,30.801,82.533,82.451,120.5]
[1646638608737,30.801,82.533,82.461,120.5]
[1646638608938,30.801,82.533,82.47,14.68]
[1646638609337,24.738,82.533,82.471,48.17061049]
[1646638610739,24.738,82.533,82.47,32.8663]
[1646638610938,24.738,82.533,82.47,14.68]
[1646638611143,6.059,82.532,82.47,14.68]
[1646638611742,120.5,82.531,82.47,14.68]
[1646638611939,120.5,82.529,82.45,14.68]
[1646638612139,120.5,82.527,82.45,14.68]
[1646638612338,24.738,82.533,82.45,14.68]
[1646638612339,120.5,82.525,82.45,14.68]
[1646638612541,6.061,82.524,82.45,14.68]
[1646638612738,120.5,82.522,82.45,14.68]
[1646638612939,120.5,82.519,82.435,62.54937323]
[1646638613138,120.5,82.519,82.43,14.68]
[1646638613340,120.5,82.519,82.43,32.8764]
[1646638613539,120.5,82.517,82.43,32.8764]
[1646638613738,120.5,82.515,82.43,32.8764]
[1646638613939,120.5,82.513,82.43,32.8764]
[1646638614139,120.5,82.511,82.43,32.8764]
[1646638614339,120.5,82.509,82.43,32.8764]
[1646638614539,120.5,82.507,82.43,32.8764]
[1646638614738,6.062,82.506,82.43,32.8764]
[1646638615840,120.5,82.507,82.43,32.8764]
[1646638616042,6.062,82.506,82.43,32.8764]
[1646638616643,6.062,82.506,82.45,18.1914]
[1646638616843,23.6181,82.51,82.451,47.6321253]
[1646638618143,23.6181,82.51,82.45,18.1914]
[1646638618543,23.6181,82.51,82.44,14.68]
[1646638619246,6.062,82.509,82.44,14.68]
[1646638619446,120.5,82.508,82.44,14.68]
[1646638619644,126.562,82.507,82.44,14.68]
[1646638620251,126.462,82.507,82.44,14.68]
[1646638621648,5.962,82.507,82.44,14.68]
[1646638621848,120.5,82.508,82.44,14.68]
[1646638622048,126.562,82.507,82.44,14.68]
[1646638622950,5.62607319,82.506,82.431,22.5141]
[1646638623151,120.5,82.504,82.42,14.68]
[1646638623353,6.063,82.503,82.42,14.68]
[1646638623554,6.063,82.503,82.421,28.65566834]
[1646638624453,6.063,82.508,82.421,28.65566834]
[1646638624653,6.063,82.509,82.423,0.41290116]
[1646638624852,23.6181,82.51,82.423,0.41290116]
[1646638625053,6.063,82.509,82.424,170.04379124]
[1646638625261,6.063,82.509,82.425,0.50327119]
[1646638625458,6.59995112,82.508,82.425,61.99743569]